Cogmind - Beta 10.2 @@@ ROGUE MODE // 2022.01.28 @ 17:52:33 Player: Jezoensis Result: Self-destructed Performance ------------- Evolutions (5) 2500 Regions Visited (14) 2800 Robots Destroyed (137) 685 Value Destroyed (4463) 4463 Prototype IDs (30) 600 Alien Tech Used (0) 0 Bonus (3160) 3160 TOTAL SCORE: 14208 Bonus ------- High Alert Combat Kills 236 Follower Combat Kills 524 Entered Garrisons 600 Used RIF Installer 1500 Aligned with FarCom 300 Cogmind --------- Core Integrity 1000/1000 Matter 231/300 Energy 158/160 System Corruption 0% Temperature Cool (0) Movement Treading (155) Location -5/Factory Parts ------- > --- POWER (1) -------- Light Fission Core > --- PROPULSION (4) --- Light Treads Armored Treads Advanced Treads Advanced Treads > --- UTILITY (8) ------ Medium Storage Unit Large Storage Unit Large Storage Unit Enhanced Optical Array Advanced Terrain Scanner Advanced Terrain Scan Processor Transmission Jammer Relay Coupler [NC] (16) > --- WEAPON (4) ------- Heavy EM Shotgun Coil Gun Coil Gun Katana > --- INVENTORY (20) --- Light Treads Light Treads Improved Treads Medium Treads Medium Treads Advanced Heat Sink High-capacity Storage Unit High-capacity Matter Pod (200) Weapon Cycler Relay Coupler [Hunter] (21) Long-range Tractor Beam Force Rifle Force Rifle EM Pulse Cannon Coil Gun Advanced Assault Cannon Long-range Missile Launcher Remote Datajack Peak State ------------ > --- POWER ------------ Light Fission Core > --- PROPULSION ------- Light Treads Armored Treads Advanced Treads Advanced Treads > --- UTILITY ---------- Medium Storage Unit Large Storage Unit Large Storage Unit Enhanced Optical Array Advanced Terrain Scanner Advanced Terrain Scan Processor Transmission Jammer Relay Coupler [NC] > --- WEAPON ----------- Heavy EM Shotgun Coil Gun Coil Gun Katana > --- INVENTORY -------- Light Treads Light Treads Improved Treads Medium Treads Medium Treads Advanced Heat Sink High-capacity Storage Unit High-capacity Matter Pod Weapon Cycler Relay Coupler [Hunter] Long-range Tractor Beam Force Rifle Force Rifle EM Pulse Cannon Coil Gun Advanced Assault Cannon Long-range Missile Launcher Remote Datajack [Rating: 56] Favorites ----------- Power Improved Ion Engine Engine Improved Ion Engine Power Core Light Fission Core Propulsion Light Treads Treads Light Treads Utility Large Storage Unit Device Improved Terrain Scanner Storage Large Storage Unit Processor Enhanced Optical Array Hackware Relay Coupler [NC] Protection Hardened Light Armor Plating Weapon Advanced Beam Cannon Energy Gun Heavy EM Shotgun Energy Cannon Advanced Beam Cannon Ballistic Gun Autogun Ballistic Cannon Assault Cannon Launcher Rocket Launcher Special Weapon Remote Datajack Slashing Weapon Katana Build | -11 -10 -10 -9 -9 -9 -8 -8 -7 -7 -7 -7 -6 -6 -5 ------- Run | Scr Mat Min Mat Min Exi Min Mat Fac Gar Fac Gar Fac Gar Fac Slots Evolved 10 | . . . 2 . . . 2 2 . . . 2 . 2 Power . | . . . . . . . . . . . . . . . Propulsion 2 | . . . 1 . . . . 1 . . . . . . Utility 6 | . . . 1 . . . 1 1 . . . 2 . 1 Weapon 2 | . . . . . . . 1 . . . . . . 1 Parts Attached 232 | 7 16 4 51 5 2 6 49 7 13 13 13 33 11 2 Power 16 | 1 2 . 5 . . . 1 1 . 2 . 3 1 . Engine 14 | 1 2 . 5 . . . 1 1 . 1 . 3 . . Core 2 | . . . . . . . . . . 1 . . 1 . Reactor . | . . . . . . . . . . . . . . . Propulsion 24 | 2 2 . 7 . . . 8 2 . 1 . 2 . . Treads 24 | 2 2 . 7 . . . 8 2 . 1 . 2 . . Leg . | . . . . . . . . . . . . . . . Wheel . | . . . . . . . . . . . . . . . Hover . | . . . . . . . . . . . . . . . Flight . | . . . . . . . . . . . . . . . Utility 109 | 2 4 2 21 3 1 5 23 4 11 4 9 14 5 1 Device 77 | 1 2 1 8 2 . 5 18 1 11 3 7 12 5 1 Storage 12 | 1 1 . 3 . 1 . 2 1 . . 2 1 . . Processor 5 | . 1 . 1 . . . 1 1 . 1 . . . . Hackware 4 | . . . . . . . 2 1 . . . 1 . . Protection 11 | . . 1 9 1 . . . . . . . . . . Artifact . | . . . . . . . . . . . . . . . Weapon 83 | 2 8 2 18 2 1 1 17 . 2 6 4 14 5 1 Energy Gun 23 | 1 3 1 8 . . . . . . 2 1 6 1 . Energy Cannon 11 | . . . 3 1 . 1 5 . . 1 . . . . Ballistic Gun 13 | 1 3 . 3 . 1 . 1 . . . 1 1 2 . Ballistic Cannon 10 | . . . . . . . 4 . 2 1 1 1 1 . Launcher 8 | . . 1 3 1 . . 2 . . . . . 1 . Special Weapon 5 | . 2 . 1 . . . . . . . . 2 . . Impact Weapon . | . . . . . . . . . . . . . . . Slashing Weapon 13 | . . . . . . . 5 . . 2 1 4 . 1 Piercing Weapon . | . . . . . . . . . . . . . . . Special Melee Weapon . | . . . . . . . . . . . . . . . Unidentified Prototypes 5 | . . . 2 . . . . . . 1 . 2 . . Parts Lost 4 | . 1 . 1 . . . . . 1 . . . 1 . Power 2 | . . . 1 . . . . . . . . . 1 . Propulsion . | . . . . . . . . . . . . . . . Utility . | . . . . . . . . . . . . . . . Weapon 2 | . 1 . . . . . . . 1 . . . . . Highest Loss Streak 1 | . 1 . 1 . . . . . 1 . . . 1 . Average Slot Usage (%) 99 | . 99 100 99 100 100 100 99 100 100 99 100 100 100 100 Engine 8 | . 14 14 10 11 11 11 9 7 7 7 7 6 1 . Treads 29 | . 28 28 33 33 33 33 27 30 30 30 30 26 26 23 Device 8 | . 13 14 9 10 11 11 6 5 7 7 5 6 6 11 Storage 18 | . 14 14 19 22 22 22 18 15 15 15 16 20 20 17 Processor 7 | . . . 1 . . . 9 15 15 15 15 13 13 11 Hackware 1 | . . . . . . . 2 1 . . . 6 6 5 Energy Gun 3 | . 13 14 6 . . . . . . 2 1 5 6 5 Energy Cannon 8 | . . . 3 11 11 20 19 15 12 6 7 6 1 . Ballistic Gun 6 | . 14 14 12 11 11 1 1 . . . 1 . 6 11 Ballistic Cannon 2 | . . . . . . . 3 . 8 7 10 4 4 . Slashing Weapon 1 | . . . . . . . 2 7 . 3 1 1 . 5 Naked Turns . | . . . . . . . . . . . . . . . Heaviest Build 83 | 13 19 19 50 47 47 49 54 69 74 76 83 68 69 65 Greatest Support 84 | 40 40 40 60 60 60 60 63 84 84 84 84 84 84 84 Greatest Overweight (x) . | . . . . . . . . . . . . . . . Average Overweight (x) . | . . . . . . . . . . . . . . . Largest Inventory Capacity 22 | 6 8 8 16 16 16 16 18 18 18 18 22 22 20 20 Average Capacity 15 | 5 6 8 13 16 16 16 16 17 18 18 18 20 20 20 Most Carried 20 | 4 8 8 16 16 16 16 16 18 18 18 20 20 20 19 Average Carried 14 | 1 5 8 13 16 15 15 15 15 17 17 18 18 19 18 Final Capacity 22 | 6 8 8 16 16 16 16 16 18 18 18 22 20 20 20 Final Carried 20 | 4 8 8 16 16 16 16 16 17 17 18 18 20 20 18 Class Distribution -------------------- 33% | Scavenger-Mutant 15% | Skirmisher 12% | Hauler-Skirmisher 12% | Mutant 9% | Scavenger-Skirmisher 7% | Assassin Dominant Class ---------------- Mutant | -10/Materials Scavenger-Mutant | -10/Mines Scavenger-Mutant | -9/Materials Scavenger-Mutant | -9/Mines Scavenger-Mutant | -9/Exiles Scavenger-Skirmisher | -8/Mines Skirmisher | -8/Materials Assassin | -7/Factory Skirmisher | -7/Garrison Assassin | -7/Factory Skirmisher | -7/Garrison Hauler-Skirmisher | -6/Factory Hauler-Skirmisher | -6/Garrison Hauler-Skirmisher | -5/Factory Resources | -11 -10 -10 -9 -9 -9 -8 -8 -7 -7 -7 -7 -6 -6 -5 ----------- Run | Scr Mat Min Mat Min Exi Min Mat Fac Gar Fac Gar Fac Gar Fac Matter Collected 3958 | 265 291 . 1137 78 . 83 729 41 254 210 84 547 239 . Remotely 816 | . . . . . . 53 195 . 69 54 84 157 204 . Salvage Created 4763 | 155 425 11 1393 37 . 121 1013 57 336 305 88 548 274 . Parts 319 | 9 26 1 107 8 . 4 85 2 15 15 5 26 16 . Haulers Intercepted 12 | . 2 . 5 . . . 2 1 . 1 . 1 . . Recyclers Shooed 7 | . 2 . 1 . . . 2 . . 1 . 1 . . Parts Field Recycled . | . . . . . . . . . . . . . . . Retrieved Matter . | . . . . . . . . . . . . . . . Parts Self-Destructed . | . . . . . . . . . . . . . . . Prevented . | . . . . . . . . . . . . . . . Kills | -11 -10 -10 -9 -9 -9 -8 -8 -7 -7 -7 -7 -6 -6 -5 ------- Run | Scr Mat Min Mat Min Exi Min Mat Fac Gar Fac Gar Fac Gar Fac Combat Hostiles Destroyed 92 | . 6 2 27 2 . 2 25 . 7 4 2 6 9 . Guns 27 | . 6 . 13 . . . 1 . . . . 2 5 . Cannons 36 | . . . 3 . . 2 16 . 6 4 2 3 . . AOE 27 | . . 2 11 2 . . 8 . . . . . 4 . Classes Destroyed 15 | 2 3 1 4 . . 1 1 . 3 . . . . . Worker 7 | . . . 5 . . 1 1 . . . . . . . Builder 5 | . . . 2 . . . 3 . . . . . . . Tunneler 6 | 3 . . 1 1 . . . . . . . 1 . . Hauler 12 | . 2 . 5 . . . 2 1 . 1 . 1 . . Recycler 4 | 1 . . 1 . . . . . . 2 . . . . Operator 2 | . . . . . . . 2 . . . . . . . Watcher 9 | . 1 . 3 . . . 3 . . . 1 1 . . Swarmer 29 | . . 2 6 2 . . 11 . . 3 . . 5 . Grunt 38 | . 6 . 13 . . 1 7 . 2 . 1 4 4 . Brawler 2 | . . . . . . . . . 2 . . . . . Duelist 2 | . . . . . . 1 . . . . 1 . . . Protector 1 | . . . 1 . . . . . . . . . . . Sentry 18 | . . . 7 . . . 7 . 1 1 . 2 . . Hunter 1 | . . . . . . . . . 1 . . . . . Programmer 1 | . . . . . . . . . 1 . . . . . Best Kill Streak 12 | 4 3 2 12 2 . 2 9 1 2 3 2 2 4 . Combat Bots Only 7 | . 2 2 7 2 . 2 6 . 2 3 2 2 4 . Max Kills in Single Turn 4 | 1 1 1 4 2 . 1 4 1 1 2 1 1 2 . Gunslinging 1 | . . . . . . . . . . . . . 1 . Exploded 3 | . . 1 2 2 . . 3 . . . . . 2 . Melee . | . . . . . . . . . . . . . . . Uniques/NPCs Destroyed . | . . . . . . . . . . . . . . . Combat | -11 -10 -10 -9 -9 -9 -8 -8 -7 -7 -7 -7 -6 -6 -5 -------- Run | Scr Mat Min Mat Min Exi Min Mat Fac Gar Fac Gar Fac Gar Fac Damage Taken 3351 | . 326 72 1062 28 . 78 414 . 252 205 165 202 547 . Core 420 | . 42 . 140 . . 16 54 . 15 7 82 25 39 . Absorbed by Shields . | . . . . . . . . . . . . . . . Core Remaining (%) 85 | 100 . 83 . . . 61 90 . . . 85 . 92 . Volleys Fired 282 | 8 33 10 82 6 . 11 50 2 18 12 11 17 22 . Largest 3 | 2 2 2 2 2 . 2 3 2 3 3 3 3 3 . Hottest 223 | 60 100 63 100 91 . 136 204 136 180 157 157 223 141 . Shots Fired 627 | 16 61 18 156 11 . 22 133 4 51 28 31 44 52 . Gun 290 | 16 58 16 135 5 . . 3 . . 7 1 18 31 . Cannon 312 | . . . 12 5 . 22 125 4 51 21 30 24 18 . Launcher 19 | . . 2 8 1 . . 5 . . . . . 3 . Special 6 | . 3 . 1 . . . . . . . . 2 . . Kinetic 265 | 8 30 8 84 5 . . 38 . 21 13 19 9 30 . Thermal 200 | . 3 . 39 5 . 22 90 4 30 . . 7 . . Explosive 19 | . . 2 8 1 . . 5 . . . . . 3 . Electromagnetic 141 | 8 28 8 25 . . . . . . 15 12 26 19 . Robot Hit Streak 26 | 8 11 8 15 2 . 10 25 26 17 14 14 21 18 . Robot Miss Streak 8 | 3 2 2 5 4 . 2 5 1 2 8 1 1 3 . Penetration Max . | . . . . . . . . . . . . . . . Secondary Targets 5 | . 2 . 2 . . . . . . . . . 1 . Max Gunslinging Chain 1 | . 1 . 1 . . . . . . . . . 1 . Shots Hit Robots 424 | 10 44 10 106 4 . 16 83 2 40 17 24 35 33 . Core Hits 222 | 7 15 2 65 4 . 8 50 1 13 14 6 19 18 . Critical Hits 31 | . 2 . 3 2 . 3 12 . 8 . . 1 . . Critical Kills 10 | . 1 . 1 . . . 6 . 2 . . . . . Critical Parts Destroyed 20 | . 1 . 2 2 . 3 6 . 5 . . 1 . . Melee Attacks 18 | . . . . . . . 5 2 . 3 5 3 . . Impact . | . . . . . . . . . . . . . . . Slashing 18 | . . . . . . . 5 2 . 3 5 3 . . Piercing . | . . . . . . . . . . . . . . . Sneak Attacks 1 | . . . . . . . . . . . . 1 . . Combat Hostiles . | . . . . . . . . . . . . . . . Follow-up Attacks . | . . . . . . . . . . . . . . . Damage Inflicted 10813 | 125 527 373 2682 240 . 340 2328 45 880 496 649 924 1204 . Guns 2994 | 124 521 144 1437 33 . . 42 . . 114 50 259 270 . Cannons 4846 | . . . 156 41 . 308 1644 45 880 382 599 559 232 . Explosions 2780 | . . 229 1069 160 . . 620 . . . . . 702 . Melee 99 | . . . . . . . . . . . . 99 . . Ramming 94 | 1 6 . 20 6 . 32 22 . . . . 7 . . Kinetic 2851 | 28 212 64 789 33 . . 433 . 310 172 384 141 285 . Thermal 2812 | . . . 518 41 . 308 1253 45 570 . . 77 . . Explosive 2780 | . . 229 1069 160 . . 620 . . . . . 702 . Electromagnetic 2177 | 96 309 80 286 . . . . . . 324 265 600 217 . Impact . | . . . . . . . . . . . . . . . Slashing 99 | . . . . . . . . . . . . 99 . . Piercing . | . . . . . . . . . . . . . . . Highest Corruption . | . . . . . . . . . . . . . . . Average Corruption . | . . . . . . . . . . . . . . . Corruption Purged . | . . . . . . . . . . . . . . . Overload Shots . | . . . . . . . . . . . . . . . Overflow Damage 207 | . . 8 44 12 . . 36 . . . 47 . 60 . Projectiles 94 | . . . . . . . 25 . . . 47 . 22 . Explosions 113 | . . 8 44 12 . . 11 . . . . . 38 . Melee . | . . . . . . . . . . . . . . . Knockbacks 10 | . . . . . . . 3 . . 1 5 1 . . Impact . | . . . . . . . . . . . . . . . Kinetic 10 | . . . . . . . 3 . . 1 5 1 . . Secondary . | . . . . . . . . . . . . . . . Self-Inflicted Damage 77 | . . 31 29 . . . 17 . . . . . . . Shots 4 | . . 2 1 . . . 1 . . . . . . . Rammed 17 | 1 3 . 3 1 . 5 2 . . . . 2 . . Targets Rammed 19 | 1 3 . 4 1 . 5 3 . . . . 2 . . Kicked . | . . . . . . . . . . . . . . . Crushed 2 | . . . 1 . . . 1 . . . . . . . Highest Temperature 442 | 20 65 44 442 92 . 39 340 102 144 285 114 90 21 . Average Temperature 74 | 13 23 15 91 40 . 13 111 51 56 83 46 28 10 . Received Heat Transfer 1071 | . 147 . 324 . . 45 162 . 105 30 63 75 120 . Effects 2 | . . . 2 . . . . . . . . . . . Short Circuit 2 | . . . 2 . . . . . . . . . . . Siege Activations . | . . . . . . . . . . . . . . . Robots Corrupted 1 | . . . . . . . . . . . . 1 . . Combat Hostiles 1 | . . . . . . . . . . . . 1 . . Parts Fried 9 | . 2 . . . . . . . . 2 . 5 . . Impact Corruptions . | . . . . . . . . . . . . . . . Robots Melted 1 | . . . . . . . . . 1 . . . . . Combat Hostiles 1 | . . . . . . . . . 1 . . . . . Parts Melted 4 | . . . . . . 1 2 . . . . . 1 . Heat Transferred 5088 | . . . 1055 74 . 555 2220 74 999 . . 111 . . Parts Sabotaged . | . . . . . . . . . . . . . . . Parts Stolen . | . . . . . . . . . . . . . . . Parts Stripped . | . . . . . . . . . . . . . . . Power Chain Reactions . | . . . . . . . . . . . . . . . Missiles Intercepted . | . . . . . . . . . . . . . . . Alert | -11 -10 -10 -9 -9 -9 -8 -8 -7 -7 -7 -7 -6 -6 -5 ------- Run | Scr Mat Min Mat Min Exi Min Mat Fac Gar Fac Gar Fac Gar Fac Peak Influence 818 | 20 183 118 582 217 . 162 320 157 274 263 406 409 818 429 Initial 429 | . 13 18 45 124 . . 63 145 109 143 184 212 286 429 Average 262 | 10 81 109 391 199 . 110 163 148 211 191 267 286 612 429 Maximum Alert Level 3 | . . . 2 1 . . 1 . 1 1 2 2 3 2 Low Security (%) 44 | 100 100 100 15 32 . 100 67 100 35 56 15 . . . Level 1 33 | . . . 18 67 . . 32 . 64 43 80 97 13 . Level 2 20 | . . . 66 . . . . . . . 3 2 71 100 Level 3 1 | . . . . . . . . . . . . . 15 . Level 4 . | . . . . . . . . . . . . . . . Level 5 . | . . . . . . . . . . . . . . . High Security . | . . . . . . . . . . . . . . . Max Security . | . . . . . . . . . . . . . . . Squads Dispatched 7 | . . . 2 . . . 2 . . . . 3 . . Investigation . | . . . . . . . . . . . . . . . Extermination . | . . . . . . . . . . . . . . . Reinforcement 4 | . . . 1 . . . 2 . . . . 1 . . Assault 1 | . . . 1 . . . . . . . . . . . Garrison 2 | . . . . . . . . . . . . 2 . . Intercept . | . . . . . . . . . . . . . . . Construction Impeded 2 | . . . 1 . . . 1 . . . . . . . Haulers Reinforced . | . . . . . . . . . . . . . . . Stealth | -11 -10 -10 -9 -9 -9 -8 -8 -7 -7 -7 -7 -6 -6 -5 --------- Run | Scr Mat Min Mat Min Exi Min Mat Fac Gar Fac Gar Fac Gar Fac Distress Signals 8 | . 1 . 1 . . . 4 . . . . 2 . . Communications Jammed 1 | . . . . . . . . . . 1 . . . . Distress Signals 1 | . . . . . . . . . . 1 . . . . Times Spotted 137 | . 10 3 41 4 . 6 27 1 7 4 7 14 13 . Peak Tracking Total 9 | . 2 3 9 3 . 3 4 1 2 4 3 3 7 . Tactical Retreats 10 | . . 2 5 1 . . . . . . 1 . 1 . Traps | -11 -10 -10 -9 -9 -9 -8 -8 -7 -7 -7 -7 -6 -6 -5 ------- Run | Scr Mat Min Mat Min Exi Min Mat Fac Gar Fac Gar Fac Gar Fac Traps Triggered 3 | . 2 . . . . . . . . . 1 . . . Indirectly . | . . . . . . . . . . . . . . . Trap Hack Attempts . | . . . . . . . . . . . . . . . Triggered . | . . . . . . . . . . . . . . . Disarmed . | . . . . . . . . . . . . . . . Reprogrammed . | . . . . . . . . . . . . . . . Reused . | . . . . . . . . . . . . . . . Traps Extracted . | . . . . . . . . . . . . . . . Installed . | . . . . . . . . . . . . . . . Triggered . | . . . . . . . . . . . . . . . Machines | -11 -10 -10 -9 -9 -9 -8 -8 -7 -7 -7 -7 -6 -6 -5 ---------- Run | Scr Mat Min Mat Min Exi Min Mat Fac Gar Fac Gar Fac Gar Fac Machines Disabled 12 | . . 1 . . . . 3 . . . 2 . 6 . Max in Single Turn 2 | . . 1 . . . . 1 . . . 1 . 2 . Garrison Access 2 | . . . . . . . . . . 1 . 1 . . Garrison Relay 4 | . . . . . . . . . . . 1 . 3 . Machines Sabotaged . | . . . . . . . . . . . . . . . Garrisons Compromised . | . . . . . . . . . . . . . . . Overloaded Fab Kills . | . . . . . . . . . . . . . . . Fab Network Shutdowns . | . . . . . . . . . . . . . . . Hacking | -11 -10 -10 -9 -9 -9 -8 -8 -7 -7 -7 -7 -6 -6 -5 --------- Run | Scr Mat Min Mat Min Exi Min Mat Fac Gar Fac Gar Fac Gar Fac Machines Accessed 26 | . 6 . 5 . 1 . 7 2 . 2 . 3 . . Terminals 19 | . 6 . 5 . . . 6 1 . . . 1 . . Fabricators . | . . . . . . . . . . . . . . . Repair Stations . | . . . . . . . . . . . . . . . Recycling Units . | . . . . . . . . . . . . . . . Scanalyzers 1 | . . . . . . . 1 . . . . . . . Garrison Access 5 | . . . . . . . . 1 . 2 . 2 . . Total Hacks 71 | . 18 . 13 . 1 . 29 4 . 2 . 4 . . Successful 51 | . 13 . 7 . 1 . 21 3 . 2 . 4 . . Failed 18 | . 4 . 6 . . . 7 1 . . . . . . Catastrophic 2 | . . . 2 . . . . . . . . . . . Database Lockouts 2 | . 1 . . . . . 1 . . . . . . . Manual 52 | . 15 . 12 . 1 . 20 3 . . . 1 . . Terminals 62 | . 18 . 13 . . . 26 3 . . . 2 . . Fabricators . | . . . . . . . . . . . . . . . Repair Stations . | . . . . . . . . . . . . . . . Recycling Units . | . . . . . . . . . . . . . . . Scanalyzers 3 | . . . . . . . 3 . . . . . . . Garrison Access 5 | . . . . . . . . 1 . 2 . 2 . . Terminal Hacks 22 | . 6 . 2 . 1 . 11 1 . . . 1 . . Part Schematic 2 | . . . . . . . 2 . . . . . . . Robot Analysis 4 | . 1 . . . . . 2 1 . . . . . . Prototype ID Bank 1 | . 1 . . . . . . . . . . . . . Branch Access Points 1 | . . . . . . . 1 . . . . . . . Terminal Index 2 | . 1 . . . . . 1 . . . . . . . Garrison Index 1 | . . . . . . . 1 . . . . . . . Unreport Threat 4 | . . . 1 . . . 3 . . . . . . . Locate Traps 4 | . 1 . 1 . . . 1 . . . . 1 . . Zone Layout 2 | . 2 . . . . . . . . . . . . . EX-Prototype ID Bank 1 | . . . . . 1 . . . . . . . . . Fabricator Hacks . | . . . . . . . . . . . . . . . Repair Station Hacks . | . . . . . . . . . . . . . . . Recycling Unit Hacks . | . . . . . . . . . . . . . . . Scanalyzer 3 | . . . . . . . 3 . . . . . . . Insert Component 1 | . . . . . . . 1 . . . . . . . Analyze 2 | . . . . . . . 2 . . . . . . . Garrison Access Hacks 5 | . . . . . . . . 1 . 2 . 2 . . Unlock Access 3 | . . . . . . . . 1 . 1 . 1 . . Seal Access 2 | . . . . . . . . . . 1 . 1 . . Unauthorized Hacks 21 | . 7 . 5 . . . 7 1 . . . 1 . . Terminals 21 | . 7 . 5 . . . 7 1 . . . 1 . . Track 10 | . 4 . 3 . . . 3 . . . . . . . Botnet 9 | . 2 . 2 . . . 3 1 . . . 1 . . Operators 2 | . 1 . . . . . 1 . . . . . . . Fabricators . | . . . . . . . . . . . . . . . Repair Stations . | . . . . . . . . . . . . . . . Recycling Units . | . . . . . . . . . . . . . . . Scanalyzers . | . . . . . . . . . . . . . . . Garrison Access . | . . . . . . . . . . . . . . . Data Cores Recovered . | . . . . . . . . . . . . . . . Used . | . . . . . . . . . . . . . . . Hacking Detections 21 | . 6 . 5 . . . 7 1 . 1 . 1 . . Full Trace Events 1 | . . . 1 . . . . . . . . . . . Feedback Events . | . . . . . . . . . . . . . . . Feedback Blocked . | . . . . . . . . . . . . . . . Robot Schematics Acquired . | . . . . . . . . . . . . . . . Robots Built . | . . . . . . . . . . . . . . . Matter . | . . . . . . . . . . . . . . . Time . | . . . . . . . . . . . . . . . Total Robot Build Rating . | . . . . . . . . . . . . . . . Part Schematics Acquired 3 | . . . . . . . 3 . . . . . . . Parts Built . | . . . . . . . . . . . . . . . Matter . | . . . . . . . . . . . . . . . Time . | . . . . . . . . . . . . . . . Total Part Build Rating . | . . . . . . . . . . . . . . . Parts Repaired . | . . . . . . . . . . . . . . . Time . | . . . . . . . . . . . . . . . Parts Recycled . | . . . . . . . . . . . . . . . Recycled Matter . | . . . . . . . . . . . . . . . Retrieved Matter . | . . . . . . . . . . . . . . . Retrieved Components . | . . . . . . . . . . . . . . . Parts Scanalyzed 1 | . . . . . . . 1 . . . . . . . Part Schematics Acquired 1 | . . . . . . . 1 . . . . . . . Parts Damaged . | . . . . . . . . . . . . . . . Bothacking | -11 -10 -10 -9 -9 -9 -8 -8 -7 -7 -7 -7 -6 -6 -5 ------------ Run | Scr Mat Min Mat Min Exi Min Mat Fac Gar Fac Gar Fac Gar Fac Used RIF Installer 3 | . . . . . . . . . 1 . 1 . 1 . Coupler Efficiency 1 | . . . . . . . . . . . . . 1 . Hotswap 1 | . . . . . . . . . . . 1 . . . Robots Hacked 2 | . . . . . . . . . . . . 2 . . Non-combat 2 | . . . . . . . . . . . . 2 . . Combat . | . . . . . . . . . . . . . . . Robot Hacks Applied 2 | . . . . . . . . . . . . 2 . . map_route 2 | . . . . . . . . . . . . 2 . . Relay Couplers Released 15 | . . . . . . . . . . . 3 . 12 . Machine Destruction 15 | . . . . . . . . . . . 3 . 12 . Attached 1 | . . . . . . . . . . . . 1 . . Robots Rewired 6 | . . . . . . . . . . . 6 . . . Allies Hacked . | . . . . . . . . . . . . . . . Hacks Repelled . | . . . . . . . . . . . . . . . Allies | -11 -10 -10 -9 -9 -9 -8 -8 -7 -7 -7 -7 -6 -6 -5 -------- Run | Scr Mat Min Mat Min Exi Min Mat Fac Gar Fac Gar Fac Gar Fac Total Allies 9 | . . . . 3 . . . . . . 6 . . . Largest Group 6 | . . . . 3 3 3 2 . . . 6 6 2 . Highest-Rated Group 132 | . . . . 40 40 40 32 . . . 132 132 64 . Highest-Rated Ally 32 | . . . . 16 16 16 16 . . . 32 32 32 . Total Orders 1 | . . . . . . . . . . . . . 1 . STAY 1 | . . . . . . . . . . . . . 1 . Ally Attacks 82 | . . . . 1 . 26 2 . . . 11 28 14 . Total Damage 1517 | . . . . 16 . 331 . . . . 145 591 434 . Kills 21 | . . . . 1 . 5 . . . . 3 7 5 . Allies Corrupted . | . . . . . . . . . . . . . . . Allies Melted . | . . . . . . . . . . . . . . . Intel | -11 -10 -10 -9 -9 -9 -8 -8 -7 -7 -7 -7 -6 -6 -5 ------- Run | Scr Mat Min Mat Min Exi Min Mat Fac Gar Fac Gar Fac Gar Fac Robot Analysis Total 4 | . 1 . . . . . 2 1 . . . . . . Derelict Logs Recovered 3 | . . . . 3 . . . . . . . . . . Drone Launches . | . . . . . . . . . . . . . . . Drone Recoveries . | . . . . . . . . . . . . . . . Exploration | -11 -10 -10 -9 -9 -9 -8 -8 -7 -7 -7 -7 -6 -6 -5 ------------- Run | Scr Mat Min Mat Min Exi Min Mat Fac Gar Fac Gar Fac Gar Fac Turns Passed 6779 | 104 645 100 1214 378 400 325 1069 219 329 371 465 496 660 4 Spaces Moved 3386 | 49 315 42 544 221 247 170 481 126 156 193 228 241 372 1 Core 12 | 12 . . . . . . . . . . . . . . Treads 3374 | 37 315 42 544 221 247 170 481 126 156 193 228 241 372 1 Legs . | . . . . . . . . . . . . . . . Wheels . | . . . . . . . . . . . . . . . Hover . | . . . . . . . . . . . . . . . Flight . | . . . . . . . . . . . . . . . Fastest Speed 50 | 50 160 160 160 160 160 160 160 155 155 155 155 155 155 155 Average Speed 157 | 133 160 160 160 160 160 160 162 155 155 155 155 155 155 155 Slowest Speed 163 | 160 160 160 160 160 160 160 163 155 155 155 155 155 155 155 Overloaded Moves . | . . . . . . . . . . . . . . . Propulsion Burnouts . | . . . . . . . . . . . . . . . Robots Hopped . | . . . . . . . . . . . . . . . Cave-ins Triggered . | . . . . . . . . . . . . . . . Time Travels 1 | . . . . . . . . . . . 1 . . . Exploration Rate (%) 36 | 3 53 17 55 51 68 41 51 6 38 9 47 11 61 . Regions Visited 14 Branch Regions 4 Pre-discovered Areas 1 | . . . . 1 . . . . . . . . . . Known Exits Taken 3 | . . . . . . . . 1 . 1 . 1 . . Unknown Exits Taken 8 | 1 1 1 1 1 1 1 1 . . . . . . . Scrap Searched 1 | . . . . 1 . . . . . . . . . . Spaces Dug 15 | . 3 . 1 . . . 5 1 . 3 . 2 . . Terrain Destroyed 146 | . 3 13 54 12 . . 34 1 . 3 . 3 23 . Melee 11 | . . . . . . . 5 1 . 3 . 2 . . Projectile 11 | . 3 . 1 . . . 5 . . . . 1 1 . AOE 124 | . . 13 53 12 . . 24 . . . . . 22 . Terrain Rammed . | . . . . . . . . . . . . . . . Walls Destroyed . | . . . . . . . . . . . . . . . Machines Disabled . | . . . . . . . . . . . . . . . Actions | -11 -10 -10 -9 -9 -9 -8 -8 -7 -7 -7 -7 -6 -6 -5 --------- Run | Scr Mat Min Mat Min Exi Min Mat Fac Gar Fac Gar Fac Gar Fac Total 4209 | 71 399 57 740 233 253 196 651 140 199 233 307 318 409 3 Wait 66 | . 5 2 9 . . 3 28 . 11 1 1 1 5 . Move 3370 | 49 314 41 543 220 246 169 480 125 154 192 226 240 370 1 Hop . | . . . . . . . . . . . . . . . Pick Up 90 | 7 13 . 23 . 2 1 17 4 2 4 6 10 1 . Fast Attach 15 | 4 1 . 5 . . . . . . 3 1 1 . . Attach 34 | 3 6 . 7 . 1 . 6 2 1 . 1 4 1 2 Detach 7 | . 2 . 2 . . . . . . 1 . 2 . . Swap 183 | . 9 4 39 5 1 6 43 5 12 10 11 28 10 . Drop 87 | . 13 . 26 1 3 1 19 . 1 7 6 10 . . Fire 282 | 8 33 10 82 6 . 11 50 2 18 12 11 17 22 . Melee 18 | . . . . . . . 5 2 . 3 5 3 . . Ram . | . . . . . . . . . . . . . . . Kick . | . . . . . . . . . . . . . . . Crush 18 | . 3 . 4 1 . 5 3 . . . . 2 . . Escape Stasis . | . . . . . . . . . . . . . . . Rewire 39 | . . . . . . . . . . . 39 . . . Trap . | . . . . . . . . . . . . . . . Miscellaneous . | . . . . . . . . . . . . . . . Route ------- -11/Scrapyard -10/Materials (discovered 2 exits: *Mat / [*Min]) -10/Mines -9/Materials (discovered 4 exits: *Mat x2 / [*Min] / [*Sto]) -9/Mines -9/Exiles (discovered 2 exits: [*Min x2]) -8/Mines -8/Materials -7/Factory -7/Garrison -7/Factory -7/Garrison -6/Factory -6/Garrison (discovered 2 exits: [*Fac x2]) -5/Factory History --------- Turn | Location | Event 10 | -11/Scrapyard | Discovered new exit (range 15) 105 | -11/Scrapyard | Entered Materials 333 | -10/Materials | Build established: Mutant 497 | -10/Materials | Discovered new exit (range 7) 600 | -10/Materials | Central database locked down 600 | -10/Materials | Discovered new exit (range 12) 750 | -10/Materials | Entered Mines 754 | -10/Mines | Met a Derelict bent on vengeance 804 | -10/Mines | Discovered new exit (range 13) 850 | -10/Mines | Entered Materials 850 | -9/Materials | Evolved 2 slots: Propulsion x1, Utility x1 984 | -9/Materials | Discovered new exit (range 7) 988 | -9/Materials | Build established: Scavenger-Mutant 1077 | -9/Materials | Destroyed 7 combat bots 1420 | -9/Materials | Discovered new exit (range 16) 1642 | -9/Materials | Discovered new exit (range 12) 1650 | -9/Materials | First assault squad dispatched 1825 | -9/Materials | Discovered new exit (range 13) 2064 | -9/Materials | Entered Mines 2071 | -9/Mines | Learned Materials trap positions 2147 | -9/Mines | Assisted by bots powering up and referring to "LRC-V3" 2226 | -9/Mines | Learned 2 Materials zone layouts 2229 | -9/Mines | Learned location of Zion (-6) 2394 | -9/Mines | Found a hidden stash of uninstalled traps 2434 | -9/Mines | Deemed a non-threat by the Exiles lab entrance 2434 | -9/Mines | Discovered new exit (range 5) 2442 | -9/Mines | Entered Exiles 2442 | -9/Exiles | Accompanied by 3 allies 2463 | -9/Exiles | Discovered new exit (range 15) 2482 | -9/Exiles | Met 8R-AWN 2506 | -9/Exiles | Met EX-HEX 2553 | -9/Exiles | Met EX-BIN 2570 | -9/Exiles | Aligned with FarCom system 2572 | -9/Exiles | Given EX-Vault access code 2609 | -9/Exiles | Opened EX-Vault 2625 | -9/Exiles | Found Chronowheel 2656 | -9/Exiles | Warned to stay clear of 0b10 Research branches 2699 | -9/Exiles | Met EX-DEC 2829 | -9/Exiles | Discovered new exit (range 10) 2842 | -9/Exiles | Left Exiles lab with Chronowheel 2842 | -9/Exiles | Entered Mines 2842 | -8/Mines | Accompanied by 3 allies 3145 | -8/Mines | Discovered new exit (range 6) 3167 | -8/Mines | Entered Materials 3167 | -8/Materials | Accompanied by 2 allies 3167 | -8/Materials | Evolved 2 slots: Utility x1, Weapon x1 3169 | -8/Materials | Loaded intel: 20 trap records 3754 | -8/Materials | Central database locked down 3788 | -8/Materials | Discovered new exit (range 2) 4236 | -8/Materials | Entered Factory 4236 | -7/Factory | Evolved 2 slots: Propulsion x1, Utility x1 4452 | -7/Factory | Identified exit to Garrison 4455 | -7/Factory | Entered Garrison 4463 | -7/Garrison | Installed Relay Interface Framework 4552 | -7/Garrison | Triggered checkpoint 4694 | -7/Garrison | Triggered checkpoint 4764 | -7/Garrison | Discovered new exit (range 13) 4784 | -7/Garrison | Entered Factory 5054 | -7/Factory | Identified exit to Garrison 5155 | -7/Factory | Entered Garrison 5227 | -7/Garrison | Triggered checkpoint 5383 | -7/Garrison | Discovered new exit (range 19) 5461 | -7/Garrison | Build established: Skirmisher 5523 | -7/Garrison | Garrison Relay disabled 5596 | -7/Garrison | Triggered checkpoint 5607 | -7/Garrison | Activated Chronowheel 5607 | -7/Garrison | Spacetime reconverged on an earlier point 5609 | -7/Garrison | Expanded RIF knowledge: Hotswap 5620 | -7/Garrison | Entered Factory 5620 | -6/Factory | Accompanied by 6 allies 5620 | -6/Factory | Evolved 2 slots: Utility x2 5791 | -6/Factory | Garrison activated, responded to threat 6026 | -6/Factory | Garrison activated, responded to threat 6113 | -6/Factory | Identified exit to Garrison 6116 | -6/Factory | Entered Garrison 6116 | -6/Garrison | Accompanied by 2 allies 6162 | -6/Garrison | Garrison Relay disabled 6193 | -6/Garrison | Triggered checkpoint 6214 | -6/Garrison | Triggered checkpoint 6220 | -6/Garrison | Triggered checkpoint 6301 | -6/Garrison | Build established: Hauler-Skirmisher 6380 | -6/Garrison | Discovered new exit (range 12) 6485 | -6/Garrison | Discovered new exit (range 13) 6511 | -6/Garrison | Expanded RIF knowledge: Coupler Efficiency 6561 | -6/Garrison | Garrison Relay disabled 6673 | -6/Garrison | Garrison Relay disabled 6688 | -6/Garrison | Triggered checkpoint 6776 | -6/Garrison | Entered Factory 6776 | -5/Factory | Evolved 2 slots: Utility x1, Weapon x1 6780 | -5/Factory | Self-destructed Last Messages --------------- 06673_ Relay Coupler [Grunt] tumbles out of relay unit. 06673_ Relay Coupler [Hunter] tumbles out of relay unit. 06673_ Relay Coupler [Grunt] tumbles out of relay unit. 06673_ Relay Coupler [Sentry] tumbles out of relay unit. 06675_ Acquired Relay Coupler [Hunter]. 06688_ Beams of light sweep through the air. An alarm sounds. 06692_ S-27 Virus destroyed. 06692_ Switching to secondary target: S-27 Virus. 06692_ S-27 Virus destroyed. 06695_ Acquired 25 matter. 06735_ Slug penetrates S-27 Virus. 06739_ Slug penetrates Wall. 06742_ S-27 Virus destroyed. 06742_ Slug penetrates Wall. 06775_ Attempting to access garrison exit controls... RIF authorized. PARAMETERS=UTILITY_1,WEAPON_1 LOCATION=UNKNOWN GOAL=ESCAPE 06776_ Receiving FarCom transmissions... Map ----- +----------------------------------------------------+ | ?????????????????????????????????????????????????? | | ?????????????????????????????????????????????????? | | ?????????????????????????????????????????????????? | | ?????????????????????????????????????????????????? | | ?????????????????????????????????????????????????? | | ?????????????????????????????????????????????????? | | ??????????????????##????#?##????#????????????????? | | ?????????????????????????????????????????????????? | | ???????????????#??????????????#??????????????????? | | ???????????????? ????????????????????????????????? | | ??????????????????"?????????????????? ???????????? | | ??????????????????????? ????????#?#???"??????????? | | ?????????????#????????????#?#???#????????????????? | | ?????????????? ???"?????" ?????????????#?????????? | | ?????????? ???????"???"??????????????????????????? | | ?????????? ?????????" ?????????????#??#??????????? | | ?????????????????????????????????#???????????????? | | ???????# ? ??????????????????????????????????????? | | ????????????????????????????????#???#????????????? | | ????????????????????????????????????????#????????? | | ???????# ??????????? ??? #?????????????????#????? | | ???????# #################?#?#?#?????????????? | | ?????? # #????????#??????????? | | ???????# #?#?????#?????#?????? | | ???????# #???#???????????????? | | ???????# @ #???????????????????? | | ???????# #???????#???????????? | | ???????## ###############+####???????????????????? | | ?????????????????????????????????#??#??????##????? | | ???????????????"?????#???????????????????????????? | | ??????????????????"??#????"??????#????#??#???????? | | ???????? ???? ?"???????????????????##????????????? | | ????????????????"?"? ?????????????????????#??????? | | ?????????Y??+???????????????"?#?#??????????#?????? | | ????????????? ???????? ? ?????#??????????????????? | | ???????? ?????????????? ????????????????????????? | | ??????????#?????????????? ?????#???#?????????????? | | ?????????????#??????????????????????????#????????? | | ?????????????????????????????????#???????????????? | | ??????????????????????????????????#??????????????? | | ?????????????????????????????????????????????????? | | ????????????????#????????????????#???????????????? | | ???????????????????????##????????????????????????? | | ?????????????????????????????????????????????????? | | ?????????????????????????????????????????????????? | | ?????????????????????????????????????????????????? | | | | | | | | | +----------------------------------------------------+ Best States ------------- Heat Dissipation 56 Energy Generation 18 Energy Capacity 290 Matter Stores 300 Matter Capacity 300 Sight Range 22 Terrain Scan Range 20 Terrain Scan Density 210 Jamming Range 8 Armor Coverage 150 Resistance: KI 20 Weapon Cycling 15 Evasion (%) 50 Recoil Reduction 4 Particle Charging 15 Offensive Hacking 10 Relay Coupler Types 30 Relay Coupler Value 1 Item Schematics ----------------- Weapon Cycler | -8/Materials | Scanalyzed Lrg. Storage Unit | -8/Materials | Hacked Hcp. Storage Unit | -8/Materials | Hacked Robot Schematics ------------------ None Fabricated ------------ Nothing Alien Tech Used ----------------- None Achievements -------------- None Challenges ------------ None Game ------ Seed FlakCloakingConverter Manual? 0 Play Time 01:40:16 Cumulative 502.5 hours Start 2022.01.27 @ 23:33:27 End 2022.01.28 @ 17:52:33 Sessions 11 Manual Loads 0 Difficulty Rogue Special Mode None Game No. 242 Rogue 115 Adventurer 125 Explorer 2 Win Type - Total 44 Types 37/3/2/0/1/0/0/0/1 Lore% 65 Gallery% 85 Achievement% 66 Wizard Run 0 Options --------- ASCII 0 Keyboard 1 Movement Numpad Keybinds 0 Fullscreen 1 Font 36/TerminusFine Map View 76x50 Tactical HUD 1 Map Filters NONE Filters NONE Steam 1 RUN: 16729c27-1642-44e0-8f43-ef916a8202d5